fUST/lending_fUST_20251117
["ID","MTS","AMOUNT","RATE_DAILY","PERIOD"]
[394167670,1763339446838,-335.41241622,0.00059999,120]
[394167671,1763339448177,218.21186951,0.00028986,2]
[394167672,1763339449303,218.21186951,0.00035655,2]
[394167673,1763339452246,206.99075724,0.000392,120]
[394167674,1763339468344,1309.03583093,0.00041,2]
[394167675,1763339478392,169.4238631,0.00038546,2]
[394167678,1763339528166,172.0,0.00035,120]
[394167679,1763339534792,150.0,0.00036703,2]
[394167680,1763339556339,189.17454806,0.000392,120]
[394167681,1763339559511,189.17454806,0.000392,120]
[394167682,1763339568464,163.31554148,0.000392,120]
[394167683,1763339572984,320.0,0.000392,120]
[394167684,1763339582656,193.96637115,0.000392,120]
[394167685,1763339615273,150.0,0.0003355,2]
[394167686,1763339615681,235.31,0.000366,2]
[394167687,1763339616205,352.97,0.00039651,2]
[394167688,1763339623087,158.71,0.00035847,60]
[394167689,1763339623123,158.71,0.00036047,60]
[394167690,1763339623314,158.71,0.00036147,60]
[394167691,1763339623387,158.71,0.00036247,60]
[394167692,1763339623460,158.71,0.00036347,60]
[394167693,1763339623530,158.71,0.00036447,60]
[394167694,1763339623570,158.71,0.00036547,60]
[394167695,1763339623693,158.71,0.00036647,60]
[394167696,1763339623779,158.71,0.00036747,60]
[394167697,1763339623829,158.71,0.00036847,60]
[394167698,1763339623981,158.71,0.00037047,60]
[394167699,1763339624043,158.71,0.00037147,60]
[394167700,1763339624076,158.71,0.00037247,60]
[394167701,1763339624147,158.71,0.00036947,60]
[394167702,1763339624257,158.8,0.00037347,60]
[394167703,1763339625628,158.71,0.00035947,60]
[394167704,1763339625858,158.71,0.00035747,60]
[394167707,1763339662332,5000.0,0.0004,2]
[394167708,1763339684603,3265.97283269,0.0004,2]
[394167709,1763339694427,150.0,0.00033425,2]
[394167711,1763339694872,216.52,0.00036464,2]
[394167712,1763339695264,324.78,0.00039502,2]
[394167721,1763339772820,150.0,0.00033556,2]
[394167722,1763339773212,198.92,0.00036607,2]
[394167723,1763339773639,298.39,0.00039658,2]
[394167724,1763339851352,150.0,0.00033456,2]
[394167725,1763339851778,182.45,0.00036497,2]
[394167726,1763339852279,273.67,0.00039539,2]
[394167727,1763339870828,189.17454806,0.000392,120]
[394167728,1763339883066,163.31554149,0.000392,120]
[394167729,1763339895629,193.96637116,0.000392,120]
[394167730,1763339931443,150.0,0.00032571,2]
[394167731,1763339931839,167.02,0.00035532,2]
[394167732,1763339932338,250.53,0.00038493,2]
[394167734,1763340009467,150.0,0.00032575,2]
[394167735,1763340009954,152.57,0.00035536,2]
[394167736,1763340010370,228.86,0.00038498,2]
[394167737,1763340069491,189.41808342,0.00039317,2]
[394167738,1763340088022,150.0,0.00032573,2]
[394167739,1763340088421,150.0,0.00035534,2]
[394167740,1763340088827,208.57,0.00038496,2]
[394167741,1763340168056,150.0,0.00032558,2]
[394167742,1763340168489,150.0,0.00035518,2]
[394167743,1763340168920,189.15,0.00038478,2]
[394167744,1763340184582,189.17454807,0.000392,120]
[394167745,1763340197327,163.31554148,0.000392,120]
[394167746,1763340244726,150.0,0.00034082,2]
[394167747,1763340245193,150.0,0.00037181,2]
[394167748,1763340320971,150.0,0.00034079,2]
[394167749,1763340321422,150.0,0.00037177,2]
[394167750,1763340330567,3000.0,0.000392,120]
[394167751,1763340331911,999.0,0.00038188,2]
[394167752,1763340360684,2021.73766178,0.0004,2]
[394167753,1763340364272,154.22026584,0.00038,3]
[394167754,1763340399461,1576.0,0.00039,2]
[394167755,1763340399668,150.0,0.00034078,2]
[394167756,1763340400069,150.0,0.00037176,2]
[394167757,1763340435139,-175.13,0.00040274,2]
[394167758,1763340435160,-396.78414335,0.00040387,2]
[394167759,1763340435181,-550.0,0.00040486,5]
[394167760,1763340435202,-1244.02505713,0.00040487,4]
[394167761,1763340453822,5000.0,0.00039,2]
[394167762,1763340474771,150.0,0.0003415,2]
[394167763,1763340475204,150.0,0.00037254,2]
[394167764,1763340477280,5000.0,0.00039,2]
[394167765,1763340499996,5000.0,0.00039,2]
[394167766,1763340519143,196.4,0.00037177,65]
[394167767,1763340549767,150.0,0.00034083,2]
[394167768,1763340550167,211.44,0.00037181,2]
[394167770,1763340594430,218.05677596,0.00028986,2]
[394167771,1763340609776,170.0,0.00035,120]
[394167772,1763340629539,150.0,0.0003262,2]
[394167773,1763340629992,202.24,0.00035586,2]
[394167774,1763340630428,303.36,0.00038551,2]
[394167810,1763340632545,-218.05677596,0.00039298,2]
[394167812,1763340632555,-158.11418999,0.00040387,2]
[394167814,1763340632564,-446.92586105,0.00040487,4]
[394167819,1763340632598,-913.29051093,0.00040487,4]
[394167932,1763340638441,-2395.75857089,0.00040487,4]
[394167934,1763340638451,-404.48,0.00041517,2]
[394167936,1763340638461,-550.0,0.00041713,5]
[394167938,1763340638471,-158.11418997,0.00041714,2]
[394167940,1763340638480,-503.4859314,0.0004275,11]
[394167942,1763340638494,-13182.8640686,0.0004275,11]
[394167944,1763340638503,-158.11418997,0.0004304,2]
[394167946,1763340638513,-4705.3477423,0.0004305,28]
[394167948,1763340638522,-771.37,0.00043131,30]
[394167950,1763340638531,-213.18825283,0.0004314,7]
[394167952,1763340638542,-312.09459616,0.0004314,31]
[394167954,1763340638551,-500.0,0.0004314,31]
[394167956,1763340638561,-500.0,0.0004314,31]
[394167958,1763340638571,-500.0,0.0004314,31]
[394167960,1763340638581,-20374.20702776,0.0004314,2]
[394167962,1763340638590,-52926.954111,0.00043141,3]
[394167964,1763340638600,-500.0,0.00043151,2]
[394167966,1763340638609,-500.0,0.00043151,2]
[394167968,1763340638619,-500.0,0.00043151,2]
[394167970,1763340638628,-287.68827176,0.00043151,2]
[394167972,1763340638637,-500.0,0.00043158,2]
[394167973,1763340638646,-500.0,0.00043158,2]
[394167975,1763340638656,-500.0,0.00043158,2]
[394167977,1763340638666,-203.88597412,0.00043158,2]
[394167979,1763340638675,-500.0,0.0004316,120]
[394167981,1763340638685,-500.0,0.0004316,120]
[394167983,1763340638694,-500.0,0.0004316,120]
[394167985,1763340638704,-500.0,0.0004316,120]
[394167987,1763340638714,-500.0,0.00043162,31]
[394167989,1763340638723,-500.0,0.00043162,120]
[394167991,1763340638733,-150.0,0.00043162,120]
[394167993,1763340638742,-500.0,0.00043162,120]
[394167995,1763340638752,-500.0,0.00043173,10]
[394167997,1763340638762,-500.0,0.00043173,10]
[394167999,1763340638771,-501.72215712,0.00043173,7]
[394168001,1763340638780,-500.0,0.00043173,10]
[394168003,1763340638790,-500.0,0.00043173,3]
[394168004,1763340638799,-500.0,0.00043173,2]
[394168006,1763340638809,-1440.0,0.0004341,11]
[394168008,1763340638818,-500.0,0.00043436,31]
[394168010,1763340638828,-500.0,0.0004371,31]
[394168012,1763340638837,-500.0,0.00043721,3]
[394168014,1763340638847,-500.0,0.00043984,31]
[394168016,1763340638856,-199.0,0.00044109,30]
[394168018,1763340638865,-500.0,0.00044156,10]
[394168020,1763340638875,-500.0,0.00044156,10]
[394168022,1763340638885,-500.0,0.00044156,10]
[394168024,1763340638894,-500.0,0.00044156,10]
[394168026,1763340638903,-150.0,0.00044156,10]
[394168028,1763340638912,-500.0,0.00044156,10]
[394168029,1763340638922,-412.07,0.00044248,10]
[394168032,1763340638932,-500.0,0.00044254,2]
[394168033,1763340638942,-500.0,0.00044258,31]
[394168035,1763340638951,-500.0,0.00044267,10]
[394168037,1763340638961,-770.0,0.00044414,5]
[394168039,1763340638971,-505.6,0.00044482,2]
[394168041,1763340638981,-500.0,0.00044532,31]
[394168043,1763340638991,-250.0,0.00044704,10]
[394168045,1763340639000,-500.0,0.00044805,120]
[394168047,1763340639009,-500.0,0.00044806,31]
[394168049,1763340639019,-512.14372084,0.0004508,31]
[394168051,1763340639028,-177.0,0.00045162,120]
[394168052,1763340639038,-350.0,0.00045251,10]
[394168054,1763340639048,-500.0,0.0004535,2]
[394168056,1763340639060,-391.1554971,0.00045362,30]
[394168059,1763340639070,-608.7020408,0.00045362,30]
[394168060,1763340639080,-548.03589283,0.00045473,60]
[394168062,1763340639090,-199.0,0.00045479,30]
[394168064,1763340639099,-170.0,0.000455,120]
[394168066,1763340639108,-997.26,0.00045757,60]
[394168068,1763340639118,-450.0,0.00045799,10]
[394168069,1763340639127,-395.4385375,0.00046178,30]
[394168070,1763340639137,-395.4385375,0.00046178,30]
[394168071,1763340639147,-395.4385375,0.00046178,30]
[394168072,1763340639157,-242.866031,0.00046178,30]
[394168073,1763340639167,-372.46,0.00046183,120]
[394168074,1763340639177,-200.0,0.00046347,10]
[394168075,1763340639186,-500.0,0.00046446,2]
[394168076,1763340639195,-199.0,0.00046849,30]
[394168077,1763340639205,-204.0,0.00047162,120]
[394168078,1763340639214,-699.0,0.0004729,5]
[394168079,1763340639224,-606.72,0.00047448,2]
[394168080,1763340639233,-495.28841905,0.00047525,10]
[394168081,1763340639243,-500.0,0.00047542,2]
[394168082,1763340639253,-535.12986449,0.00048119,2]
[394168083,1763340639263,-199.0,0.00048219,30]
[394168084,1763340639272,-500.0,0.00048289,120]
[394168085,1763340639281,-1000.0,0.00048289,2]
[394168086,1763340639291,-1000.0,0.00048289,2]
[394168087,1763340639301,-1000.0,0.00048289,2]
[394168088,1763340639310,-1000.0,0.00048289,2]
[394168089,1763340639319,-1000.0,0.00048289,2]
[394168090,1763340639329,-500.0,0.00048299,120]
[394168091,1763340639338,-105853.908222,0.000483,4]
[394168092,1763340639347,-642.8,0.000483,30]
[394168093,1763340639356,-500.0,0.00048309,120]
[394168094,1763340639366,-500.0,0.00048309,120]
[394168095,1763340639377,-500.0,0.00048309,120]
[394168096,1763340639388,-500.0,0.00048309,120]
[394168097,1763340639399,-500.0,0.00048309,120]
[394168098,1763340639409,-88888.0,0.0004831,120]
[394168099,1763340639421,-150.0,0.00048373,10]
[394168100,1763340639432,-402.97647619,0.00048373,3]
[394168101,1763340639443,-500.0,0.00048373,10]
[394168102,1763340639454,-151.0,0.00048381,2]
[394168103,1763340639463,-151.0,0.00048381,2]
[394168104,1763340639473,-151.0,0.00048381,2]
[394168105,1763340639484,-151.0,0.00048381,2]
[394168106,1763340639494,-151.0,0.00048381,2]
[394168107,1763340639504,-151.0,0.00048381,2]
[394168108,1763340639513,-151.0,0.00048381,2]
[394168109,1763340639522,-151.0,0.00048381,2]
[394168110,1763340639531,-151.0,0.00048381,2]
[394168111,1763340639543,-269.16156133,0.00048381,2]
[394168112,1763340639552,-500.0,0.00048389,120]
[394168113,1763340639562,-52926.954111,0.0004839,4]
[394168114,1763340639572,-521.25294436,0.00048399,120]
[394168115,1763340639582,-156.04,0.000484,14]
[394168116,1763340639592,-622.64154827,0.00048473,4]
[394168117,1763340639601,-500.0,0.00048473,7]
[394168118,1763340639612,-52926.954111,0.0004849,4]
[394168119,1763340639622,-2155.96,0.000485,14]
[394168120,1763340639631,-813.95,0.000485,14]
[394168121,1763340639640,-250.0,0.00048921,10]
[394168122,1763340639649,-1000.0,0.00048921,10]
[394168123,1763340639658,-231.0,0.00049162,120]
[394168124,1763340639667,-500.0,0.00049315,120]
[394168125,1763340639676,-500.0,0.00049315,120]
[394168126,1763340639686,-500.0,0.00049315,7]
[394168127,1763340639777,-500.0,0.00049315,2]
[394168128,1763340639787,-316.28762796,0.00049315,2]
[394168129,1763340639797,-500.0,0.00049315,120]
[394168130,1763340639807,-500.0,0.00049315,120]
[394168131,1763340639816,-500.0,0.00049315,120]
[394168132,1763340639825,-500.0,0.00049315,2]
[394168133,1763340639835,-500.0,0.00049315,120]
[394168134,1763340639844,-500.0,0.00049315,120]
[394168135,1763340639853,-278.40000013,0.00049315,120]
[394168136,1763340639863,-500.0,0.00049315,2]
[394168137,1763340639872,-500.0,0.00049315,120]
[394168138,1763340639882,-500.0,0.00049315,120]
[394168139,1763340639891,-587.73,0.00049315,3]
[394168140,1763340639900,-500.0,0.00049315,10]
[394168141,1763340639909,-500.0,0.00049315,120]
[394168142,1763340639919,-507.54932902,0.00049315,120]
[394168143,1763340639928,-500.0,0.00049315,120]
[394168144,1763340639937,-500.0,0.00049315,120]
[394168145,1763340639947,-500.0,0.00049315,120]
[394168146,1763340639956,-500.0,0.00049315,7]
[394168147,1763340639965,-286.74909833,0.00049315,120]
[394168148,1763340639974,-500.0,0.00049315,7]
[394168149,1763340639984,-500.0,0.00049315,120]
[394168150,1763340639994,-600.97448334,0.00049315,120]
[394168151,1763340640003,-500.0,0.00049315,120]
[394168152,1763340640013,-508.15250256,0.00049315,120]
[394168153,1763340640023,-500.71090668,0.00049315,2]
[394168154,1763340640035,-350.0,0.00049468,10]
[394168155,1763340640044,-1500.0,0.00049468,10]
[394168156,1763340640053,-500.0,0.00049589,120]
[394168157,1763340640063,-500.0,0.00049589,120]
[394168158,1763340640074,-500.0,0.00049589,7]
[394168159,1763340640084,-500.0,0.00049589,2]
[394168161,1763340640094,-500.0,0.00049589,120]
[394168162,1763340640103,-500.0,0.00049589,120]
[394168163,1763340640112,-499.919,0.00049589,120]
[394168164,1763340640122,-508.247077,0.00049589,120]
[394168165,1763340640131,-500.0,0.00049589,120]
[394168166,1763340640140,-587.73,0.00049589,3]
[394168167,1763340640150,-504.44362501,0.00049589,10]
[394168168,1763340640159,-500.0,0.00049589,120]
[394168169,1763340640169,-500.0,0.00049589,120]
[394168171,1763340640178,-500.0,0.00049589,120]
[394168172,1763340640188,-500.0,0.00049589,7]
[394168173,1763340640198,-500.0,0.00049589,7]
[394168174,1763340640208,-500.0,0.00049589,120]
[394168175,1763340640218,-218.27483274,0.00049611,2]
[394168176,1763340640227,-150.0,0.00049862,30]
[394168177,1763340640236,-500.0,0.00049863,120]
[394168179,1763340640245,-500.0,0.00049863,120]
[394168181,1763340640254,-500.0,0.00049863,7]
[394168182,1763340640263,-500.0,0.00049863,2]
[394168184,1763340640272,-500.0,0.00049863,120]
[394168185,1763340640281,-599.87104453,0.00049863,120]
[394168186,1763340640293,-587.73,0.00049863,3]
[394168187,1763340640302,-500.0,0.00049863,120]
[394168188,1763340640311,-500.0,0.00049863,120]
[394168189,1763340640320,-500.0,0.00049863,120]
[394168190,1763340640329,-500.0,0.00049863,7]
[394168191,1763340640339,-500.0,0.00049863,7]
[394168192,1763340640349,-500.0,0.00049863,120]
[394168193,1763340640358,-405.34707481,0.00050016,10]
[394168194,1763340640367,-1914.25770443,0.00050016,10]
[394168195,1763340640379,-400.0,0.00050074,10]
[394168196,1763340640388,-453.79672163,0.00050126,30]
[394168197,1763340640398,-500.0,0.00050136,120]
[394168198,1763340640407,-500.0,0.00050136,120]
[394168199,1763340640415,-500.0,0.00050136,7]
[394168200,1763340640426,-500.0,0.00050136,2]
[394168201,1763340640435,-500.0,0.00050136,120]
[394168202,1763340640444,-587.73,0.00050136,3]
[394168203,1763340640455,-500.0,0.00050136,120]
[394168204,1763340640464,-500.0,0.00050136,120]
[394168205,1763340640473,-500.0,0.00050136,120]
[394168206,1763340640483,-500.0,0.00050136,7]
[394168207,1763340640492,-500.0,0.00050136,7]
[394168208,1763340640501,-519.80262934,0.00050136,120]
[394168209,1763340640510,-236.96061596,0.000504,51]
[394168210,1763340640519,-214.48,0.0005041,120]
[394168211,1763340640528,-500.0,0.0005041,120]
[394168212,1763340640538,-500.0,0.0005041,7]
[394168213,1763340640548,-500.0,0.0005041,2]
[394168214,1763340640557,-500.0,0.0005041,120]
[394168215,1763340640566,-587.73,0.0005041,3]
[394168216,1763340640575,-500.0,0.0005041,120]
[394168217,1763340640585,-500.0,0.0005041,120]
[394168218,1763340640595,-500.0,0.0005041,120]
[394168219,1763340640604,-500.0,0.0005041,7]
[394168220,1763340640613,-500.0,0.0005041,7]
[394168221,1763340640623,-707.84,0.00050413,2]
[394168222,1763340640633,-52926.954111,0.00050674,4]
[394168223,1763340640642,-500.0,0.00050684,120]
[394168224,1763340640651,-500.0,0.00050684,7]
[394168225,1763340640658,-500.0,0.00050684,2]
[394168226,1763340640667,-500.0,0.00050684,120]
[394168227,1763340640677,-587.73,0.00050684,3]
[394168228,1763340640686,-500.0,0.00050684,120]
[394168229,1763340640696,-500.0,0.00050684,120]
[394168230,1763340640705,-500.0,0.00050684,120]
[394168231,1763340640714,-500.0,0.00050684,7]
[394168232,1763340640723,-500.0,0.00050684,7]
[394168233,1763340640732,-535.12986445,0.00050864,2]
[394168234,1763340640741,-500.0,0.00050958,120]
[394168235,1763340640750,-500.0,0.00050958,7]
[394168236,1763340640760,-500.0,0.00050958,2]
[394168237,1763340640769,-500.0,0.00050958,120]
[394168238,1763340640779,-587.73,0.00050958,3]
[394168239,1763340640789,-500.0,0.00050958,120]
[394168240,1763340640798,-552.57075209,0.00050958,120]
[394168241,1763340640807,-500.0,0.00050958,120]
[394168242,1763340640816,-500.0,0.00050958,7]
[394168243,1763340640825,-500.0,0.00050958,7]
[394168244,1763340640834,-258.0,0.00051162,120]
[394168245,1763340640843,-500.0,0.00051232,120]
[394168246,1763340640852,-224.56,0.00051232,7]
[394168247,1763340640861,-500.0,0.00051232,2]
[394168248,1763340640870,-615.0,0.00051232,120]
[394168249,1763340640879,-587.73,0.00051232,3]
[394168250,1763340640888,-500.0,0.00051232,120]
[394168251,1763340640898,-500.0,0.00051232,120]
[394168252,1763340640908,-500.0,0.00051232,7]
[394168253,1763340640918,-171.73728719,0.00051232,7]
[394168254,1763340640929,-2000.0,0.00051351,21]
[394168255,1763340640938,-500.0,0.00051506,120]
[394168256,1763340640948,-500.0,0.00051506,2]
[394168257,1763340640957,-587.73,0.00051506,3]
[394168258,1763340640966,-500.0,0.00051506,120]
[394168259,1763340640975,-500.0,0.00051506,120]
[394168260,1763340640985,-500.0,0.00051506,7]
[394168261,1763340640995,-505.50839957,0.0005178,120]
[394168262,1763340641004,-500.0,0.0005178,2]
[394168263,1763340641013,-587.73,0.0005178,3]
[394168264,1763340641023,-500.0,0.0005178,120]
[394168265,1763340641032,-500.0,0.0005178,120]
[394168266,1763340641042,-500.0,0.0005178,7]
[394168267,1763340641052,-500.0,0.00052054,2]
[394168268,1763340641061,-587.73,0.00052054,3]
[394168269,1763340641071,-500.0,0.00052054,120]
[394168270,1763340641080,-500.0,0.00052054,120]
[394168271,1763340641090,-500.0,0.00052054,7]
[394168272,1763340641100,-150.0,0.00052243,10]
[394168273,1763340641110,-500.0,0.00052328,2]
[394168274,1763340641120,-587.73,0.00052328,3]
[394168275,1763340641130,-500.0,0.00052328,120]
[394168276,1763340641139,-500.0,0.00052328,120]
[394168277,1763340641148,-500.0,0.00052328,7]
[394168278,1763340641158,-500.0,0.00052602,2]
[394168279,1763340641167,-587.73,0.00052602,3]
[394168280,1763340641177,-500.0,0.00052602,120]
[394168281,1763340641187,-500.0,0.00052602,120]
[394168282,1763340641196,-500.0,0.00052602,7]
[394168283,1763340641206,-250.0,0.00052791,10]
[394168284,1763340641215,-500.0,0.00052876,2]
[394168285,1763340641224,-587.73,0.00052876,3]
[394168286,1763340641234,-500.0,0.00052876,120]
[394168287,1763340641243,-500.0,0.00052876,120]
[394168288,1763340641255,-500.0,0.00052876,7]
[394168289,1763340641264,-500.0,0.0005315,2]
[394168290,1763340641275,-587.73,0.0005315,3]
[394168291,1763340641285,-500.0,0.0005315,120]
[394168292,1763340641294,-500.0,0.0005315,120]
[394168293,1763340641303,-500.0,0.0005315,7]
[394168294,1763340641312,-285.0,0.00053162,120]
[394168295,1763340641321,-350.0,0.00053339,10]
[394168296,1763340641331,-808.96,0.00053379,2]
[394168297,1763340641340,-500.0,0.00053424,2]
[394168298,1763340641349,-587.73,0.00053424,3]
[394168299,1763340641359,-500.0,0.00053424,120]
[394168300,1763340641368,-500.0,0.00053424,120]
[394168301,1763340641380,-151.85,0.00053424,7]
[394168302,1763340641389,-154657.6524,0.0005344,30]
[394168303,1763340641398,-2612.28400002,0.0005346,60]
[394168304,1763340641408,-1000.0,0.00053473,10]
[394168305,1763340641418,-535.12986445,0.0005361,2]
[394168306,1763340641427,-500.0,0.00053698,2]
[394168307,1763340641436,-587.73,0.00053698,3]
[394168308,1763340641446,-500.0,0.00053698,120]
[394168309,1763340641456,-500.0,0.00053698,120]
[394168310,1763340641466,-507.21,0.00053972,2]
[394168311,1763340641475,-587.73,0.00053972,3]
[394168312,1763340641484,-500.0,0.00053972,120]
[394168313,1763340641493,-500.0,0.00053972,120]
[394168314,1763340641502,-151.0,0.00054,28]
[394168315,1763340641511,-813.95,0.00054,14]
[394168316,1763340641520,-587.73,0.00054246,3]
[394168317,1763340641529,-500.0,0.00054246,120]
[394168318,1763340641539,-500.0,0.00054246,120]
[394168319,1763340641548,-150.0,0.00054395,30]
[394168320,1763340641557,-587.73,0.0005452,3]
[394168321,1763340641567,-154.42,0.0005452,120]
[394168322,1763340641576,-490.00000006,0.0005452,120]
[394168323,1763340641585,-587.73,0.00054794,3]
[394168324,1763340641594,-605.21044779,0.00054794,120]
[394168325,1763340641604,-151.0,0.000548,21]
[394168326,1763340641613,-587.73,0.00055068,3]
[394168327,1763340641622,-312.0,0.00055162,120]
[394168328,1763340641631,-587.73,0.00055342,3]
[394168329,1763340641640,-151.0,0.000556,27]
[394168330,1763340641649,-587.8,0.00055616,3]
[394168331,1763340641659,-487.639434,0.00055698,26]
[394168332,1763340641667,-170.0,0.00056,120]
[394168333,1763340641676,-910.08,0.00056344,2]
[394168334,1763340641685,-535.12986445,0.00056355,2]
[394168335,1763340641694,-10382.78105739,0.00056373,2]
[394168336,1763340641703,-283482.1275,0.0005644,120]
[394168337,1763340641711,-988.0,0.00057074,120]
[394168338,1763340641720,-629.0,0.00057074,120]
[394168339,1763340641729,-193.198,0.00057074,120]
[394168340,1763340641737,-150.0,0.00057074,120]
[394168341,1763340641746,-150.0,0.00057074,120]
[394168342,1763340641757,-339.0,0.00057162,120]
[394168343,1763340641766,-508.708,0.00057177,30]
[394168344,1763340641775,-500.0,0.00057563,15]
[394168345,1763340641785,-1033.64843405,0.00057582,15]
[394168346,1763340641794,-1000.0,0.000588,120]
[394168347,1763340641804,-1000.0,0.000588,120]
[394168348,1763340641813,-1000.0,0.000588,120]
[394168349,1763340641822,-1000.0,0.000588,120]
[394168350,1763340641831,-1000.0,0.000588,120]
[394168351,1763340641840,-1000.0,0.000588,120]
[394168352,1763340641849,-1000.0,0.000588,120]
[394168353,1763340641858,-1000.0,0.000588,120]
[394168354,1763340641867,-1000.0,0.000588,120]
[394168355,1763340641876,-1000.0,0.000588,120]
[394168356,1763340641886,-500.0,0.0005887,60]
[394168357,1763340641895,-150.0,0.00058928,30]
[394168358,1763340641904,-535.12986445,0.000591,2]
[394168359,1763340641913,-366.0,0.00059162,120]
[394168360,1763340641922,-500.0,0.00059199,90]
[394168361,1763340641931,-170089.2765,0.000592,120]
[394168362,1763340641940,-151.0,0.000592,120]
[394168363,1763340641949,-151.0,0.000592,120]
[394168364,1763340641958,-151.0,0.000592,120]
[394168365,1763340641967,-297.980834,0.000592,120]
[394168366,1763340641976,-151.0,0.000592,120]
[394168367,1763340642059,-151.0,0.000592,120]
[394168368,1763340642068,-288.200192,0.000592,120]
[394168369,1763340642077,-151.0,0.000592,120]
[394168370,1763340642086,-151.0,0.000592,120]
[394168371,1763340642094,-151.0,0.000592,120]
[394168372,1763340642108,-151.0,0.000592,120]
[394168373,1763340642117,-151.0,0.000592,120]
[394168374,1763340642126,-151.0,0.000592,120]
[394168375,1763340642135,-151.0,0.000592,120]
[394168376,1763340642144,-294.811448,0.000592,120]
[394168377,1763340642152,-151.0,0.000592,120]
[394168378,1763340642162,-156.675197,0.000592,120]
[394168379,1763340642171,-156.675197,0.000592,120]
[394168380,1763340642180,-156.675197,0.000592,120]
[394168381,1763340642189,-156.675197,0.000592,120]
[394168382,1763340642198,-151.0,0.000592,120]
[394168383,1763340642207,-151.0,0.000592,120]
[394168384,1763340642216,-151.0,0.000592,120]
[394168385,1763340642224,-151.0,0.000592,120]
[394168386,1763340642233,-151.0,0.000592,120]
[394168387,1763340642242,-166.231944,0.000592,120]
[394168388,1763340642251,-151.0,0.000592,120]
[394168389,1763340642260,-151.0,0.000592,120]
[394168390,1763340642268,-151.0,0.000592,120]
[394168391,1763340642277,-151.0,0.000592,120]
[394168392,1763340642286,-151.0,0.000592,120]
[394168393,1763340642295,-278.218947,0.000592,120]
[394168394,1763340642304,-151.0,0.000592,120]
[394168395,1763340642312,-151.0,0.000592,90]
[394168396,1763340642321,-151.0,0.000592,120]
[394168397,1763340642330,-151.0,0.000592,120]
[394168398,1763340642339,-151.0,0.000592,120]
[394168399,1763340642348,-151.0,0.000592,30]
[394168400,1763340642357,-151.0,0.000592,120]
[394168401,1763340642366,-151.0,0.000592,120]
[394168402,1763340642377,-151.0,0.000592,120]
[394168403,1763340642388,-151.0,0.000592,120]
[394168404,1763340642398,-151.0,0.000592,120]
[394168405,1763340642407,-151.0,0.000592,120]
[394168406,1763340642418,-151.0,0.000592,120]
[394168407,1763340642427,-151.0,0.000592,120]
[394168408,1763340642436,-151.0,0.000592,120]